bitfinex/quotes_SOLUSD_20240716
["timestamp","ask_amount","ask_price","bid_price","bid_amount"]
[1721108338564,6.4012,156.22,156.16,6.4033]
[1721108338775,1.5,156.19,156.17,6.4032]
[1721108338972,1.5,156.21,156.13,22.6701]
[1721108339142,1.5,156.21,156.17,6.4029]
[1721108339680,1.5,156.21,156.18,6.4028]
[1721108339856,1.5,156.25,156.13,22.6701]
[1721108340057,1.5,156.22,156.13,22.6701]
[1721108340272,1.5,156.24,156.13,41.9101]
[1721108340489,6.401,156.23,156.16,6.4033]
[1721108340783,1.5,156.24,156.19,6.4022]
[1721108341159,1.5,156.24,156.21,6.4015]
[1721108341478,1.5,156.24,156.13,23.2279402]
[1721108341678,1.5,156.24,156.21,6.4016]
[1721108341852,1.5,156.24,156.21,6.4015]
[1721108342182,1.5,156.24,156.2,6.402]
[1721108342481,1.5,156.24,156.13,23.2279402]
[1721108342855,1.5,156.22,156.17,6.403]
[1721108343160,1.5,156.22,156.13,23.2279402]
[1721108343161,6.4021,156.2,156.14,6.4044]
[1721108343369,6.4021,156.2,156.13,29.6327402]
[1721108343370,6.4025,156.19,156.13,29.6327402]
[1721108343573,6.4029,156.18,156.13,0.5578402]
[1721108343775,1.5,156.16,156.13,0.5578402]
[1721108344668,1.5,156.16,156.15,6.404]
[1721108344863,1.5,156.16,156.13,0.5578402]
[1721108345070,7.9037,156.16,156.13,0.5578402]
[1721108345605,1.5,156.2,156.13,0.5578402]
[1721108345755,6.4028,156.19,156.13,6.9626402]
[1721108346085,1.5,156.16,156.13,0.5578402]
[1721108346559,1.5,156.16,156.13,1.83858321]
[1721108346753,1.5,156.16,156.13,0.5578402]
[1721108346980,1.5,156.16,156.13,8.24338019]
[1721108347165,1.5,156.16,156.13,0.5578402]
[1721108347759,1.5,156.14,156.13,0.5578402]
[1721108348284,7.9045,156.14,156.13,0.5578402]
[1721108348584,27.9045,156.14,156.13,0.5578402]
[1721108348973,6.4067,156.09,156.01,260.5]
[1721108349160,21.5,156.14,155.95,6.1273]
[1721108349361,6.4066,156.09,156.01,1.28168266]
[1721108349660,1.5,156.06,156.0,12.2196659]
[1721108349972,7.9079,156.06,156.0,5.8098659]
[1721108350179,6.4083,156.05,156.0,5.8098659]
[1721108350489,1.5,156.06,156.0,5.8098659]
[1721108350490,6.4092,156.03,156.0,5.8098659]
[1721108350652,6.409,156.03,156.0,5.8098659]
[1721108350989,6.4091,156.03,156.0,5.8098659]
[1721108351165,1.5,156.04,156.0,5.8098659]
[1721108351355,6.4098,156.01,156.0,5.8098659]
[1721108351570,1.5,156.04,155.94,0.04027364]
[1721108351773,1.5,156.04,156.03,6.409]
[1721108352000,1.5,156.04,155.96,15.8928]
[1721108352183,1.5,156.04,156.01,6.4097]
[1721108352510,1.5,156.04,155.96,15.8928]
[1721108352676,1.5,156.04,155.97,7.69311617]
[1721108352981,1.5,156.04,156.02,6.4092]
[1721108353177,1.5,156.04,156.01,6.4098]
[1721108353489,7.0348,156.14,155.97,19.24]
[1721108353798,1.5,156.12,156.01,6.6328]
[1721108354009,1.5,156.12,156.02,45.0]
[1721108354202,1.5,156.12,156.09,6.4065]
[1721108354399,1.5,156.12,156.1,45.0]
[1721108354582,1.5,156.12,156.02,45.0]
[1721108355297,1.5,156.12,156.06,6.4077]
[1721108355497,1.5,156.12,156.02,45.0]
[1721108355690,1.5,156.12,156.03,1.28118467]
[1721108355878,1.5,156.12,156.02,45.0]
[1721108356080,1.5,156.09,156.04,6.4084]
[1721108356292,1.5,156.09,156.03,6.4086]
[1721108356700,1.5,156.09,156.04,6.4086]
[1721108356905,1.5,156.09,156.06,6.4076]
[1721108357095,1.5,156.12,156.09,6.4064]
[1721108357297,1.5,156.12,156.02,45.0]
[1721108357989,7.9054,156.12,156.06,6.4076]
[1721108358191,26.4058,156.11,156.02,45.0]
[1721108358386,1.5,156.12,156.03,1.2814025]
[1721108358591,1.5,156.1,156.02,45.0]
[1721108358809,1.5,156.1,156.06,6.4074]
[1721108359311,1.5,156.12,156.06,6.4073]
[1721108359611,1.5,156.09,156.02,45.0]
[1721108359807,7.9065,156.09,156.02,45.0]
[1721108360012,1.5,156.11,156.03,1.28141399]
[1721108360307,1.5,156.11,155.97,20.52153145]
[1721108360308,7.9059,156.11,155.97,20.52153145]
[1721108360707,6.4061,156.1,156.04,6.4085]
[1721108360882,6.4069,156.09,155.96,21.9768]
[1721108361087,6.4078,156.06,156.0,6.4102]
[1721108361349,1.5,156.03,155.99,6.4104]
[1721108361688,7.9091,156.03,155.97,6.4111]
[1721108362210,21.5521,156.09,155.96,6.4118]
[1721108362211,6.4094,156.02,155.96,6.4118]
[1721108362414,6.4103,156.0,155.94,6.45257364]
[1721108362816,16.0224,156.04,155.94,0.04027364]
[1721108362994,20.0,156.03,155.94,0.04027364]
[1721108363189,1.5,156.02,155.94,0.04027364]
[1721108363392,6.411,155.99,155.94,0.04027364]
[1721108363701,6.4102,156.01,155.94,6.45287364]
[1721108363897,6.4104,156.0,155.94,6.45287364]
[1721108364227,6.4119,155.96,155.94,0.04027364]
[1721108364444,6.4123,155.95,155.94,0.04027364]
[1721108364721,6.4109,155.99,155.94,0.04027364]
[1721108364921,20.0,155.98,155.94,0.04027364]
[1721108365130,7.9123,155.95,155.94,0.04027364]
[1721108365835,27.9123,155.95,155.94,0.04027364]
[1721108366114,20.0,155.95,155.94,0.04027364]
[1721108366324,27.9123,155.95,155.94,0.04027364]
[1721108366622,1.5,156.01,155.94,0.04027364]
[1721108366801,6.4123,155.95,155.94,0.04027364]
[1721108367013,1.5,155.96,155.94,0.04027364]
[1721108367219,1.5,156.01,155.94,0.04027364]
[1721108367403,7.9123,155.95,155.94,0.04027364]
[1721108367834,6.4118,155.97,155.94,0.04027364]
[1721108368002,20.0,155.96,155.94,0.04027364]
[1721108368203,6.411,155.99,155.94,0.04027364]
[1721108368439,20.0,155.98,155.94,0.04027364]
[1721108368651,1.5,155.95,155.94,0.04027364]
[1721108368938,7.9123,155.95,155.94,0.04027364]
[1721108369138,6.4123,155.95,155.94,0.04027364]
[1721108369313,26.4123,155.95,155.94,0.04027364]
[1721108369726,7.9123,155.95,155.94,0.04027364]
[1721108370005,6.4151,155.89,155.84,0.8098659]
[1721108370325,6.4147,155.9,155.84,0.8098659]
[1721108370509,1.5,155.92,155.84,0.8098659]
[1721108370714,6.4164,155.85,155.84,0.8098659]
[1721108370914,45.6148,155.89,155.84,0.8098659]
[1721108371213,20.0,155.88,155.77,6.1959659]
[1721108371415,40.7,155.92,155.77,6.1959659]
[1721108371635,6.4165,155.85,155.79,6.4186]
[1721108371936,6.415,155.89,155.77,6.1959659]
[1721108372135,20.0,155.91,155.77,6.1959659]
[1721108372344,1.5,155.88,155.77,6.1959659]
[1721108372628,1.5,155.9,155.77,25.4359659]
[1721108372842,1.5,155.9,155.86,6.4159]
[1721108373001,1.5,155.9,155.77,6.1959659]
[1721108373411,1.5,155.9,155.85,6.4164]
[1721108373622,1.5,155.9,155.86,7.6990918]
[1721108373842,1.5,155.94,155.87,1.28300187]
[1721108374005,1.5,155.94,155.8,1.28279005]
[1721108374216,1.5,155.9,155.79,19.24]
[1721108374742,1.5,155.9,155.84,6.4167]
[1721108374944,1.5,155.9,155.85,45.0]
[1721108375131,1.5,155.9,155.86,6.416]
[1721108375452,13.8858,155.99,155.87,1.28295446]
[1721108375769,1.5,155.99,155.88,6.4658]
[1721108375931,1.5,155.96,155.88,6.4658]
[1721108376121,1.5,155.96,155.75,274.0]
[1721108376122,6.416,155.86,155.78,22.0653]
[1721108376446,1.5,155.86,155.78,22.0653]
[1721108376835,1.5,155.86,155.83,6.4172]
[1721108377037,1.5,155.93,155.78,22.0653]
[1721108377216,1.5,155.93,155.89,6.4147]
[1721108377217,20.0,155.93,155.89,6.4147]
[1721108377417,21.5,155.93,155.79,1.28289953]
[1721108377616,6.416,155.96,155.8,1.28285599]
[1721108377830,1.5,155.95,155.91,6.4136]
[1721108378032,1.5,155.93,155.81,1.28276418]
[1721108378334,1.5,155.93,155.78,41.3053]
[1721108378655,1.5,155.89,155.83,6.4168]
[1721108378824,1.5,155.89,155.84,6.4166]
[1721108379027,1.5,155.89,155.78,22.0653]
[1721108379354,1.5,155.86,155.84,6.4167]
[1721108379659,1.5,155.9,155.84,6.4167]
[1721108379945,1.5,155.9,155.78,22.0653]
[1721108380151,6.4161,155.86,155.79,6.4184]
[1721108380338,6.4161,155.86,155.71,15.478]
[1721108380531,1.5,155.89,155.8,6.4183]
[1721108380854,1.5,155.89,155.71,15.478]
[1721108381226,1.5,155.83,155.71,15.478]
[1721108381767,1.5,155.83,155.79,6.4188]
[1721108381970,1.5,155.83,155.72,1.28375227]
[1721108382261,1.5,155.83,155.68,22.9045659]
[1721108382554,20.0,155.86,155.83,6.4171]
[1721108382555,21.5,155.86,155.83,6.4171]
[1721108382755,1.5,155.88,155.85,6.4163]
[1721108382929,1.5,155.88,155.71,10.0]
[1721108382930,7.9147,155.9,155.83,6.4172]
[1721108383257,7.9147,155.9,155.73,13.5]
[1721108383258,1.5,155.9,155.74,22.5277]
[1721108383423,1.5,155.9,155.84,6.4164]
[1721108383626,1.5,155.88,155.75,19.24]
[1721108383826,1.5,155.9,155.85,6.416]
[1721108384056,1.5,155.9,155.76,39.24]
[1721108384228,1.5,155.9,155.77,64.24]
[1721108384423,1.5,155.9,155.84,6.4166]
[1721108384623,1.5,155.9,155.85,45.0]
[1721108384830,1.5,155.88,155.85,45.0]
[1721108385337,1.5,155.86,155.83,6.417]
[1721108385540,1.5,155.86,155.8,6.4181]
[1721108385738,6.4156,155.87,155.74,22.5277]
[1721108385941,1.5,155.86,155.69,16.127]
[1721108386140,1.5,155.84,155.69,16.127]
[1721108386340,1.5,155.84,155.8,6.4183]
[1721108386558,1.5,155.84,155.69,16.127]
[1721108386854,1.5,155.84,155.83,6.4172]
[1721108387058,1.5,155.84,155.7,19.24]
[1721108387269,1.5,155.86,155.7,19.24]
[1721108387564,1.5,155.86,155.83,6.4171]
[1721108387951,1.5,155.86,155.85,6.4164]
[1721108388241,1.5,155.86,155.72,67.16]
[1721108388451,1.5,155.86,155.73,84.24]
[1721108388629,1.5,155.84,155.73,65.0]
[1721108388830,7.917,155.84,155.78,6.4189]
[1721108389046,6.4164,155.85,155.79,6.4188]
[1721108389253,1.5,155.83,155.8,6.4184]
[1721108389434,1.5,155.83,155.81,6.418]
[1721108389648,1.5,155.83,155.73,20.0]
[1721108389971,6.418,155.82,155.76,6.42]
[1721108390267,5.975,155.83,155.69,16.127]
[1721108390556,5.975,155.83,155.77,6.4197]
[1721108390756,1.5,155.86,155.69,35.367]
[1721108390969,5.975,155.88,155.69,35.367]
[1721108390970,6.4174,155.83,155.77,6.4193]
[1721108391143,1.5,155.81,155.69,16.127]
[1721108391352,15.975,155.88,155.69,16.127]
[1721108391353,1.5,155.78,155.69,16.127]
[1721108391648,1.5,155.83,155.74,6.4209]
[1721108391851,1.5,155.83,155.77,6.4196]
[1721108392162,1.5,155.85,155.8,6.4183]
[1721108392459,5.975,155.88,155.85,6.4163]
[1721108392769,5.975,155.88,155.75,1.28323412]
[1721108393066,1.5,155.89,155.76,19.24]
[1721108393260,1.5,155.89,155.87,6.4154]
[1721108393437,1.5,155.89,155.77,20.5230713]
[1721108393636,1.5,155.89,155.78,65.0]
[1721108393832,1.5,155.89,155.85,6.416]
[1721108394033,1.5,155.89,155.86,1.28300855]
[1721108394472,1.5,155.89,155.86,52.69900855]
[1721108394641,1.5,155.89,155.88,6.4151]
[1721108394829,1.5,155.89,155.88,51.4151]
[1721108395352,1.5,155.89,155.88,45.0]
[1721108395556,1.5,155.89,155.88,51.4151]
[1721108396248,1.5,155.89,155.88,45.0]
[1721108396453,1.5,155.89,155.88,51.4151]
[1721108397463,1.5,155.89,155.88,45.0]
[1721108397674,1.5,155.89,155.87,6.4155]
[1721108398176,1.5,155.89,155.8,39.22]
[1721108398367,1.5,155.89,155.88,6.4151]
[1721108398532,1.5,155.89,155.86,6.4156]
[1721108398737,7.9148,155.89,155.79,21.596]
[1721108399134,6.4152,155.88,155.79,21.596]
[1721108399339,6.4152,155.88,155.82,6.4175]
[1721108399645,6.4152,155.88,155.83,1.28323033]
[1721108399851,1.5,155.85,155.83,7.70043033]
[1721108400054,1.5,155.85,155.83,6.4172]
[1721108400341,1.5,155.89,155.88,6.4151]
[1721108400659,1.5,155.89,155.79,21.596]
[1721108400838,7.916,155.87,155.8,6.4181]
[1721108401045,1.5,155.87,155.75,58.46]
[1721108401358,1.5,155.87,155.86,6.416]
[1721108401557,1.5,155.87,155.84,6.4167]
[1721108401755,1.5,155.87,155.76,19.24]
[1721108401938,1.5,155.89,155.77,40.52310061]
[1721108402137,1.5,155.89,155.77,39.24]
[1721108402340,1.5,155.87,155.78,1.28303522]
[1721108402559,1.5,155.85,155.75,19.24]
[1721108402754,1.5,155.88,155.83,6.4169]
[1721108402961,6.4174,155.83,155.77,6.4195]
[1721108403169,1.5,155.84,155.74,22.6387]
[1721108403368,6.4165,155.85,155.79,6.4188]
[1721108403668,6.4168,155.85,155.74,22.6387]
[1721108403872,1.5,155.83,155.74,22.6387]
[1721108404081,1.5,155.88,155.83,6.417]
[1721108404377,7.9152,155.88,155.83,6.417]
[1721108404584,1.5,155.88,155.81,6.4178]
[1721108404787,1.5,155.84,155.82,6.4176]
[1721108405101,1.0,155.88,155.78,19.24]
[1721108405256,1.0,155.88,155.87,6.4156]
[1721108405456,1.0,155.88,155.85,6.4163]
[1721108405706,1.0,155.88,155.86,1.28296132]
[1721108405853,1.0,155.88,155.86,6.4159]
[1721108406287,1.0,155.88,155.81,1.28278834]
[1721108406582,1.0,155.88,155.85,6.4164]
[1721108406786,1.0,155.88,155.81,20.0]
[1721108407090,1.0,155.88,155.78,20.0]
[1721108407260,1.0,155.86,155.73,39.22]
[1721108407580,20.0,155.91,155.69,14.0]
[1721108407581,1.0,155.84,155.69,14.0]
[1721108407791,20.0,155.86,155.75,1.28355591]
[1721108407997,13.3909,155.87,155.75,1.28355591]
[1721108408228,1.0,155.87,155.75,1.28355591]
[1721108408493,1.0,155.89,155.88,6.4151]
[1721108408672,1.0,155.89,155.79,58.46]
[1721108408987,1.0,155.89,155.8,40.52278786]
[1721108409157,1.0,155.89,155.88,6.4151]
[1721108409357,1.0,155.89,155.78,19.24]
[1721108409783,1.0,155.89,155.84,6.4167]
[1721108409988,1.0,155.86,155.79,20.0]
[1721108410200,1.0,155.86,155.76,39.22]
[1721108410361,1.0,155.86,155.74,22.6387]
[1721108410560,1.0,155.8,155.76,6.4197]
[1721108410784,1.0,155.8,155.74,6.4207]
[1721108411061,1.0,155.8,155.69,22.894]
[1721108411279,1.0,155.8,155.7,0.94433273]
[1721108411481,1.0,155.8,155.71,0.94427208]
[1721108411784,1.0,155.8,155.77,6.4196]
[1721108412010,5.975,155.85,155.78,1.28360687]
[1721108412180,1.0,155.87,155.73,39.22]
[1721108412399,1.0,155.83,155.78,6.4192]
[1721108412695,1.0,155.83,155.7,58.46]
[1721108412696,1.0,155.87,155.79,6.4188]
[1721108412873,1.0,155.87,155.8,7.70147549]
[1721108413078,1.0,155.87,155.81,6.4176]
[1721108413476,1.0,155.87,155.7,58.46]
[1721108413783,1.0,155.87,155.77,6.4194]
[1721108413784,6.417,155.84,155.77,6.4194]
[1721108413984,1.0,155.87,155.7,39.22]
[1721108414291,1.0,155.8,155.68,7.48905516]
[1721108414668,13.3927,155.82,155.68,46.70905516]
[1721108415004,6.975,155.82,155.68,46.70905516]
[1721108415575,6.975,155.82,155.68,7.48905516]
[1721108415800,13.393,155.82,155.75,6.4205]
[1721108416101,6.4164,155.85,155.79,6.4188]
[1721108416600,6.975,155.86,155.71,54.5323]
[1721108416773,6.4173,155.83,155.72,20.0]
[1721108417078,6.4168,155.85,155.78,6.4192]
[1721108417305,13.391,155.86,155.79,1.28361929]
[1721108417488,1.0,155.86,155.85,6.4164]
[1721108417695,1.0,155.88,155.84,6.4168]
[1721108418191,1.0,155.88,155.74,64.7317]
[1721108418388,6.416,155.86,155.8,6.4181]
[1721108418700,1.0,155.88,155.81,1.2832772]
[1721108418901,1.0,155.86,155.75,40.52318537]
[1721108419207,5.975,155.91,155.78,19.24]
[1721108419208,1.0,155.89,155.78,19.24]
[1721108419411,7.4149,155.89,155.83,6.4168]
[1721108419578,1.0,155.89,155.84,1.28299051]
[1721108419782,1.0,155.89,155.87,6.4155]
[1721108419982,1.0,155.87,155.77,39.22]
[1721108420213,1.0,155.87,155.74,45.4917]
[1721108420503,1.0,155.85,155.74,6.2717]
[1721108420733,1.0,155.85,155.8,6.4182]
[1721108420885,1.0,155.85,155.82,6.4176]
[1721108421088,1.0,155.85,155.83,1.28329571]
[1721108421291,1.0,155.85,155.75,1.28325588]
[1721108421477,1.0,155.85,155.82,6.4176]
[1721108421682,1.0,155.85,155.81,6.418]
[1721108422104,1.0,155.85,155.75,1.28325588]
[1721108422105,1.0,155.85,155.82,1.28323705]
[1721108422312,1.0,155.87,155.76,19.24]
[1721108422603,1.0,155.87,155.86,6.416]
[1721108422816,1.0,155.89,155.79,19.24]
[1721108422978,1.0,155.89,155.8,56.75310648]
[1721108423612,1.0,155.89,155.8,1.28280648]
[1721108423789,1.0,155.89,155.77,16.2303]
[1721108424111,1.0,155.89,155.85,6.4163]
[1721108424320,1.0,155.89,155.77,16.2303]
[1721108424814,1.0,155.89,155.87,6.4152]
[1721108424979,1.0,155.89,155.88,7.69791633]
[1721108425182,1.0,155.89,155.88,6.4151]
[1721108425385,1.0,155.89,155.8,1.28281812]
[1721108425587,1.0,155.89,155.8,20.0]
[1721108425781,1.0,155.89,155.81,20.52276328]
[1721108426106,1.0,155.89,155.87,6.4154]
[1721108426619,1.0,155.89,155.88,1.28280677]
[1721108426783,5.975,155.95,155.84,19.24]
[1721108426784,1.0,155.95,155.84,19.24]
[1721108427011,5.2813,155.98,155.86,19.24]
[1721108427213,5.2813,155.98,155.93,6.4129]
[1721108427214,1.0,155.98,155.93,6.4129]
[1721108427541,1.0,155.95,155.94,1.28232058]
[1721108428042,1.0,155.95,155.84,25.597]
[1721108428215,1.0,155.95,155.92,6.4135]
[1721108428731,16.0236,156.02,155.93,1.28233326]
[1721108428732,1.0,156.0,155.93,1.28233326]
[1721108429835,1.0,156.02,155.99,6.4102]
[1721108430038,6.975,156.04,156.0,1.2815168]
[1721108430213,1.0,156.04,156.0,7.6915168]
[1721108430409,7.4077,156.07,156.01,7.69103465]
[1721108430637,1.0,156.07,156.02,1.28158112]
[1721108430943,1.0,156.07,155.96,1.28157878]
[1721108431155,1.0,156.07,156.03,6.4089]
[1721108431315,1.0,156.07,156.04,7.68942172]
[1721108431518,1.0,156.07,156.05,7.68948721]
[1721108431725,1.0,156.07,156.03,6.4088]
[1721108431933,1.0,156.07,156.04,1.28141634]
[1721108432142,1.0,156.07,156.05,1.28142903]
[1721108432345,1.0,156.07,156.04,6.4085]
[1721108432648,1.0,156.07,156.05,1.28125812]
[1721108433009,1.0,156.07,155.99,6.4102]
[1721108433252,1.0,156.04,156.01,6.4098]
[1721108433614,1.0,156.04,156.02,6.4093]
[1721108433816,1.0,156.07,156.03,1.28148021]
[1721108434124,1.0,156.07,155.97,55.8428]
[1721108434331,1.0,156.07,156.03,6.4089]
[1721108434540,1.0,156.07,156.04,7.68895179]
[1721108434739,1.0,156.07,156.05,1.28056972]
[1721108434932,1.0,156.07,156.05,7.68866972]
[1721108435133,1.0,156.07,156.06,1.28120916]
[1721108435341,1.0,156.07,156.06,7.68890916]
[1721108435532,1.0,156.09,155.97,16.6228]
[1721108435854,1.0,156.11,156.08,6.4069]
[1721108436033,1.0,156.14,156.09,1.2809837]
[1721108436235,1.0,156.14,156.11,6.4057]
[1721108437123,1.0,156.14,156.12,6.4053]
[1721108437425,17.8126659,156.23,156.14,6.4044]
[1721108437629,17.8126659,156.23,156.15,1.28046098]
[1721108437830,6.4024,156.2,156.15,1.28046098]
[1721108438325,6.4024,156.2,156.14,6.4044]
[1721108438326,6.4024,156.2,156.16,1.28044532]
[1721108438522,1.8098659,156.23,156.18,6.4028]
[1721108438771,1.8098659,156.23,156.19,1.28023961]
[1721108439054,1.8098659,156.23,156.19,6.4024]
[1721108439251,1.8098659,156.23,156.2,1.28010636]
[1721108439933,0.8098659,156.23,156.22,6.4012]
[1721108440619,0.8098659,156.23,156.21,7.68141336]
[1721108440824,0.8098659,156.23,156.21,1.27981336]
[1721108441130,0.8098659,156.23,156.15,6.5481]
[1721108441131,0.8098659,156.23,156.15,7.82819221]
[1721108441353,0.8098659,156.23,156.19,1.27976438]
[1721108441555,0.8098659,156.23,156.17,6.403]
[1721108441556,8.2107659,156.23,156.17,6.403]
[1721108441725,1.0,156.21,156.15,6.5481]
[1721108441927,1.0,156.21,156.19,6.4022]
[1721108442130,1.0,156.21,156.19,6.4023]
[1721108442355,1.0,156.21,156.2,6.402]
[1721108442530,1.0,156.21,156.19,6.4023]
[1721108442839,1.0,156.21,156.2,6.402]
[1721108443359,1.0,156.21,156.19,6.402]
[1721108443556,0.8098659,156.23,156.21,6.4015]
[1721108443740,0.8098659,156.23,156.14,10.0]
[1721108443939,0.8098659,156.23,156.22,6.4012]
[1721108445932,0.8098659,156.23,156.22,43.93673192]
[1721108446138,1.0,156.32,156.31,6.3975]
[1721108446457,1.0,156.32,156.29,6.398]
[1721108446648,1.0,156.32,156.22,36.2561]
[1721108446959,1.0,156.32,156.31,6.3975]
[1721108447165,1.0,156.32,156.23,20.0]
[1721108447739,1.0,156.3,156.29,6.3983]
[1721108448061,1.0,156.32,156.24,1.2793412]
[1721108448265,1.0,156.34,156.33,6.3967]
[1721108448767,1.0,156.36,156.35,6.3959]
[1721108449257,1.0,156.33,156.23,30.0]
[1721108449448,0.8098659,156.39,156.32,15.5195]
[1721108449676,0.8098659,156.39,156.38,6.3946]
[1721108453315,0.8098659,156.39,156.32,15.5195]
[1721108453451,1.0,156.35,156.26,21.944]
[1721108453970,1.0,156.35,156.31,6.3975]
[1721108454177,7.3959,156.35,156.26,21.944]
[1721108454381,1.0,156.31,156.2,21.944]
[1721108454682,1.0,156.3,156.21,1.27954526]
[1721108454891,1.0,156.32,156.3,6.3978]
[1721108455060,1.0,156.32,156.2,21.944]
[1721108455259,1.0,156.3,156.2,21.944]
[1721108455593,6.7848659,156.39,156.15,6.0314]
[1721108455594,1.0,156.24,156.15,6.0314]
[1721108455878,1.0,156.27,156.15,6.0314]
[1721108456079,1.0,156.27,156.16,1.27995532]
[1721108456282,1.0,156.27,156.23,6.4007]
[1721108456464,1.0,156.25,156.24,1.27991581]
[1721108456664,1.0,156.23,156.19,6.4021]
[1721108456869,1.0,156.23,156.15,6.0314]
[1721108457076,1.0,156.23,156.18,6.4026]
[1721108457393,1.0,156.18,156.1,6.648]
[1721108457564,1.0,156.18,156.14,6.4044]
[1721108457969,1.0,156.18,156.08,15.6205]
[1721108458163,6.4037,156.16,156.09,6.4064]
[1721108458381,1.0,156.14,156.09,1.28098339]
[1721108458587,1.0,156.14,156.11,6.4056]
[1721108458764,1.0,156.16,156.14,6.4044]
[1721108459704,1.0,156.16,156.06,1.28065944]
[1721108459705,1.0,156.16,156.13,6.4048]
[1721108460000,1.0,156.16,156.14,7.68504704]
[1721108460169,1.0,156.16,156.15,1.28066139]
[1721108460366,1.0,156.16,156.12,6.4049]
[1721108460668,1.0,156.12,156.08,6.4069]
[1721108460981,1.0,156.1,156.09,6.4065]
[1721108461289,1.0,156.1,156.02,16.2409]
[1721108461800,1.0,156.1,156.09,6.4065]
[1721108461974,1.0,156.12,156.11,6.4057]
[1721108462174,1.0,156.1,156.05,6.4079]
[1721108462378,1.0,156.08,155.99,6.286]
[1721108462589,1.0,156.05,156.04,6.4086]
[1721108462774,1.0,156.05,156.02,6.409]
[1721108463091,1.0,156.05,155.96,16.5796]
[1721108463298,1.0,156.05,156.04,6.4086]
[1721108463493,1.0,156.07,156.04,6.4086]
[1721108463668,1.0,156.05,155.96,16.5796]
[1721108463864,1.0,156.03,155.96,16.5796]
[1721108464287,30.975,156.15,155.97,1.28171492]
[1721108464288,1.0,156.08,155.97,1.28171492]
[1721108464491,5.975,156.15,155.97,1.28171492]
[1721108464492,1.0,156.06,155.97,1.28171492]
[1721108464716,1.0,156.04,156.01,6.4097]
[1721108464923,1.0,156.04,156.0,6.4102]
[1721108465114,16.0116,156.14,155.96,16.5796]
[1721108465115,1.0,156.02,155.96,16.5796]
[1721108465629,1.0,156.02,156.01,6.4098]
[1721108465840,20.975,156.15,155.97,1.28187355]
[1721108465841,1.0,156.06,155.97,1.28187355]
[1721108466125,1.0,156.06,156.05,6.4082]
[1721108466818,1.0,156.06,155.96,16.5796]
[1721108466995,1.0,156.06,156.03,6.4086]
[1721108467399,1.0,156.04,155.99,6.4105]
[1721108467612,1.0,156.04,156.01,6.4097]
[1721108467835,1.0,156.04,156.02,6.4092]
[1721108468121,1.0,156.04,156.03,7.69070653]
[1721108468317,5.975,156.15,156.05,6.4082]
[1721108468318,1.0,156.06,156.05,6.4082]
[1721108468492,1.0,156.06,155.97,1.28150573]
[1721108468691,1.0,156.03,156.02,6.4091]
[1721108469114,1.0,156.05,156.04,6.4086]